bitfinex-derivatives/quotes_ETHF0:USTF0_20250905
["timestamp","ask_amount","ask_price","bid_price","bid_amount"]
[1757054904972,1.39005809,4335.2,4335.1,0.7237]
[1757054907976,1.39005809,4335.2,4335.1,0.5208]
[1757054911577,1.39005809,4335.2,4335.1,0.3102]
[1757054912081,1.8517281,4335.2,4334.6,0.298]
[1757054912277,1.38885809,4334.7,4334.6,0.298]
[1757054913679,1.38885809,4334.7,4334.6,0.5086]
[1757054913877,1.38885809,4334.7,4334.6,0.7115]
[1757054914684,0.7352,4334.7,4334.6,0.7115]
[1757054919884,1.38885809,4334.7,4334.6,0.298]
[1757054920985,1.38885809,4334.7,4334.6,0.5086]
[1757054921485,1.38885809,4334.7,4334.2,0.298]
[1757054921686,0.4178,4334.4,4334.3,0.2106]
[1757054921875,0.7352,4334.4,4334.3,0.298]
[1757054922080,0.7352,4333.9,4333.8,0.5086]
[1757054922789,1.38885809,4333.9,4333.7,0.231]
[1757054923784,1.07145809,4333.9,4333.7,0.529]
[1757054924085,0.4178,4333.8,4333.2,3.7368]
[1757054924390,0.7352,4333.3,4333.2,3.9474]
[1757054924783,0.7352,4333.3,4333.2,4.1503]
[1757054926489,0.4178,4333.3,4333.2,4.1503]
[1757054929294,0.7256,4333.3,4333.2,4.1503]
[1757054932290,0.3078,4334.1,4333.3,0.3084]
[1757054932484,1.61010809,4334.1,4334.0,0.5182]
[1757054932686,1.37935809,4334.1,4334.0,0.3084]
[1757054932994,1.6100881,4334.1,4333.5,0.3507]
[1757054933298,1.6100881,4334.1,4333.6,0.3084]
[1757054933797,1.37935809,4334.1,4333.6,0.3084]
[1757054934093,0.65365809,4333.8,4333.7,0.2098]
[1757054934305,1.07155809,4333.8,4333.7,0.5182]
[1757054934799,1.37935809,4333.8,4333.7,0.5182]
[1757054937503,0.7257,4333.8,4333.7,0.5182]
[1757054938003,0.7257,4333.8,4333.7,0.7153]
[1757054943708,3.2078,4334.2,4333.5,0.3507]
[1757054943709,3.2078,4334.2,4334.1,0.3084]
[1757054944006,3.4212,4334.2,4334.1,0.7153]
[1757054944207,3.9335,4334.2,4334.1,0.7153]
[1757054945299,3.6257,4334.2,4334.1,0.7153]
[1757054945499,3.9335,4334.2,4334.1,0.7153]
[1757054947603,3.9335,4334.2,4334.1,0.5182]
[1757054948405,3.9335,4334.2,4334.1,0.3084]
[1757054949907,3.9335,4334.2,4333.5,0.3507]
[1757054950213,3.9335,4334.2,4333.6,0.3084]
[1757054952712,0.7257,4334.2,4333.6,0.3084]
[1757054952911,0.2134,4333.7,4333.6,0.7153]
[1757054953212,3.2078,4334.1,4333.6,0.7153]
[1757054953409,0.5212,4333.8,4333.7,0.7153]
[1757054953611,0.7257,4333.8,4333.7,0.7153]
[1757054954204,3.2078,4334.1,4333.7,0.7153]
[1757054954516,3.4212,4334.1,4334.0,0.835]
[1757054955206,3.729,4334.1,4334.0,0.835]
[1757054955716,3.9335,4334.1,4334.0,0.835]
[1757054958815,3.9335,4334.1,4334.0,0.7153]
[1757054959613,3.9335,4334.1,4334.0,0.5182]
[1757054961012,3.9335,4334.1,4333.6,0.295]
[1757054963115,3.9335,4334.1,4333.5,0.3507]
[1757054963615,3.9335,4334.1,4333.6,0.295]
[1757054965017,3.9335,4334.1,4333.5,0.3507]
[1757054965220,0.119,4334.0,4333.6,0.295]
[1757054965517,0.7434,4333.7,4333.6,0.4945]
[1757054965917,0.7434,4333.7,4333.6,0.7005]
[1757054970918,3.2078,4334.1,4333.7,0.295]
[1757054971120,3.9512,4334.1,4334.0,0.4945]
[1757054973618,3.9512,4334.1,4333.5,0.3507]
[1757054973619,3.9512,4334.1,4333.6,0.295]
[1757054973827,0.7434,4333.7,4333.6,0.4945]
[1757054975032,0.7434,4333.7,4333.5,0.231]
[1757054975233,0.3209,4333.6,4333.5,0.526]
[1757054975536,0.7434,4333.6,4333.5,0.526]
[1757054976031,0.7434,4333.6,4333.5,0.7255]
[1757054976530,0.7434,4333.6,4333.5,0.9315]
[1757054976730,0.7434,4333.6,4333.5,1.0509]
[1757054983538,0.4225,4333.6,4333.5,1.0509]
[1757054984131,0.7434,4333.6,4333.5,1.0509]
[1757054984940,0.7434,4333.6,4333.5,0.9315]
[1757054985436,0.7434,4333.6,4333.5,0.7255]
[1757054986143,0.7434,4333.6,4333.5,0.9315]
[1757054986336,0.7434,4333.6,4333.5,1.0509]
[1757054987537,0.4225,4333.6,4333.5,1.0509]
[1757054987944,0.7218,4333.6,4333.5,1.0509]
[1757054993549,0.7218,4333.6,4333.5,0.7255]
[1757054993846,3.5071,4334.1,4333.5,0.7486]
[1757054994041,0.507,4333.9,4333.8,0.402]
[1757054994247,0.507,4333.9,4333.8,0.6957]
[1757054994546,0.2077,4333.9,4333.8,0.6957]
[1757054995041,0.507,4333.9,4333.8,0.6957]
[1757054995445,0.2077,4333.9,4333.8,0.6957]
[1757054997443,0.507,4333.9,4333.8,0.6957]
[1757054997749,0.2077,4333.9,4333.8,0.6957]
[1757054999049,3.2078,4334.1,4333.8,0.6957]
[1757054999247,3.2078,4334.1,4333.8,0.402]
[1757054999444,3.9178,4334.1,4334.0,0.8176]
[1757055001336,3.6185,4334.1,4334.0,0.8176]
[1757055001953,3.9178,4334.1,4334.0,0.8176]
[1757055009054,3.9178,4334.1,4334.0,0.4995]
[1757055010855,3.9178,4334.1,4334.0,0.8176]
[1757055011244,3.9178,4334.1,4334.0,0.6957]
[1757055014156,3.2078,4334.1,4334.0,5.70186227]
[1757055014361,3.5071,4335.1,4334.5,0.93909]
[1757055014657,3.9178,4335.1,4335.0,0.6957]
[1757055015462,3.9178,4335.1,4335.0,0.4995]
[1757055017569,3.9178,4335.1,4334.7,0.2937]
[1757055021169,3.9178,4335.1,4334.6,0.231]
[1757055021360,0.303,4334.9,4334.2,0.316]
[1757055021563,0.1959,4334.4,4334.3,0.956]
[1757055021770,0.1959,4334.4,4334.3,1.1867]
[1757055022168,0.1959,4334.4,4334.3,1.60191]
[1757055022674,0.1959,4334.4,4334.3,1.37121]
[1757055023266,0.1959,4334.6,4334.5,0.1164]
[1757055023472,0.77263227,4335.0,4334.7,0.409]
[1757055023473,0.4048,4334.8,4334.7,0.409]
[1757055023869,0.7078,4334.8,4334.7,0.725]
[1757055032083,0.4048,4334.8,4334.7,0.725]
[1757055033884,0.7078,4334.8,4334.7,0.725]
[1757055034680,0.1959,4334.8,4334.7,0.725]
[1757055034873,0.7078,4334.8,4334.7,0.725]
[1757055040583,0.7078,4334.8,4334.2,3.86133227]
[1757055040784,0.5119,4334.4,4334.3,0.7606]
[1757055040988,0.7078,4334.4,4334.3,0.7606]
[1757055041184,3.2078,4334.7,4334.3,0.956]
[1757055041185,3.5108,4334.7,4334.3,0.956]
[1757055041388,3.9156,4334.7,4334.6,0.5296]
[1757055050800,3.9156,4334.7,4334.3,0.231]
[1757055051298,3.9156,4334.7,4334.4,0.3145]
[1757055051495,3.9156,4334.7,4334.3,0.231]
[1757055051689,3.9156,4334.7,4334.4,0.3145]
[1757055052299,3.9156,4334.7,4334.3,0.231]
[1757055052691,3.9156,4334.7,4334.4,0.3145]
[1757055052888,3.9156,4334.7,4334.3,0.231]
[1757055053100,3.915,4334.7,4334.6,0.5256]
[1757055053494,3.915,4334.7,4334.6,0.7251]
[1757055054796,3.915,4334.7,4334.6,0.5256]
[1757055054993,3.915,4334.7,4334.4,0.3145]
[1757055055499,3.915,4334.7,4334.3,0.231]
[1757055055702,3.915,4334.7,4334.6,0.7251]
[1757055057301,3.4037,4334.7,4334.6,0.7251]
[1757055058604,3.2078,4334.7,4334.6,0.7251]
[1757055058800,3.4055,4334.7,4334.6,0.7251]
[1757055059599,0.1977,4334.7,4334.6,1.14028]
[1757055059805,0.1977,4335.1,4335.0,0.8534]
[1757055060406,0.5001,4335.1,4335.0,0.8534]
[1757055060707,0.1977,4335.1,4335.0,1.26855]
[1757055061807,0.7088,4335.7,4335.6,0.5256]
[1757055063411,0.3024,4335.6,4335.3,0.3145]
[1757055063611,0.7088,4335.3,4335.2,0.31796113]
[1757055064412,0.7088,4335.3,4335.2,0.00346113]
[1757055064612,0.7088,4335.3,4335.2,0.31796113]
[1757055064807,0.7088,4335.3,4335.2,0.00346113]
[1757055070615,0.7088,4335.3,4334.5,0.231]
[1757055070916,0.7088,4334.6,4334.5,0.231]
[1757055074523,0.7088,4334.6,4334.5,0.5455]
[1757055077812,0.7088,4334.6,4334.5,0.7566]
[1757055079011,0.7007,4334.6,4334.5,1.0811]
[1757055079218,0.4064,4334.6,4334.5,1.0811]
[1757055080113,0.7007,4334.6,4334.5,1.0811]
[1757055080818,0.7007,4334.6,4334.5,0.9561]
[1757055082815,0.417,4333.7,4333.6,0.3041]
[1757055083014,3.9191,4333.7,4333.6,0.3041]
[1757055083215,3.9191,4333.7,4333.6,0.5066]
[1757055084513,3.9191,4333.7,4333.6,0.79391176]
[1757055084714,3.9191,4333.7,4333.6,1.00441176]
[1757055084914,3.9191,4333.7,4333.6,0.79391176]
[1757055085822,3.9191,4333.7,4333.6,1.00441176]
[1757055090321,8.14985,4333.7,4332.8,0.3041]
[1757055090522,0.417,4332.6,4332.1,32.067]
[1757055090718,0.7113,4332.5,4332.4,0.2025]
[1757055090920,0.7113,4332.5,4332.4,0.5066]
[1757055091813,0.522,4332.5,4332.1,0.231]
[1757055092014,0.7113,4332.2,4332.1,0.231]
[1757055092416,0.7113,4332.2,4331.7,0.3041]
[1757055092417,0.9423,4332.2,4331.7,0.3041]
[1757055092620,0.7113,4331.2,4331.1,0.7171]
[1757055094124,0.7113,4331.2,4331.1,0.3041]
[1757055094322,0.2943,4331.1,4330.7,3.4388]
[1757055094623,3.6248,4330.8,4329.6,1.0993584]
[1757055094922,0.1154,4331.4,4330.2,0.7171]
[1757055094923,3.2078,4330.3,4330.2,0.7171]
[1757055095234,0.234,4331.1,4331.0,0.6316]
[1757055096722,0.234,4331.1,4331.0,0.4291]
[1757055097328,0.234,4331.1,4331.0,0.125]
[1757055097529,0.234,4331.1,4331.0,0.4291]
[1757055098324,0.234,4331.1,4330.6,0.3041]
[1757055098525,3.2078,4330.7,4330.6,0.3041]
[1757055099324,3.2078,4330.7,4330.1,0.3041]
[1757055099530,3.2078,4330.2,4329.6,0.3041]
[1757055099732,1.0292584,4330.1,4329.6,0.3041]
[1757055099919,3.2078,4329.7,4329.6,0.3041]
[1757055102731,3.4418,4329.7,4329.6,0.3041]
[1757055104035,3.2078,4329.7,4329.6,0.7171]
[1757055104332,3.2078,4329.7,4329.6,4.7171]
[1757055108139,0.234,4330.5,4330.4,0.3951]
[1757055108338,3.2078,4330.6,4330.5,0.6097]
[1757055109432,3.2078,4330.6,4330.5,0.8052]
[1757055110535,3.4418,4330.6,4330.5,0.4101]
[1757055110735,3.4418,4330.6,4330.0,0.1191]
[1757055110736,3.4418,4330.6,4330.1,0.291]
[1757055110941,3.4418,4330.6,4330.0,0.3187]
[1757055111236,3.2078,4330.1,4330.0,0.4101]
[1757055111627,3.2078,4330.1,4330.0,0.6097]
[1757055113039,3.2078,4330.1,4330.0,0.4101]
[1757055114342,3.2078,4330.1,4330.0,0.6097]
[1757055115241,3.90345003,4330.1,4330.0,0.4101]
[1757055115636,3.90345003,4330.1,4330.0,0.291]
[1757055117045,4.13845003,4330.1,4329.5,0.125]
[1757055117240,0.69565003,4330.0,4329.5,0.125]
[1757055117444,3.2078,4329.6,4329.5,0.6156]
[1757055118341,3.90504272,4329.6,4329.5,0.6156]
[1757055119144,8.13904272,4329.6,4329.0,0.416]
[1757055119440,3.2078,4329.1,4329.0,0.291]
[1757055119641,3.90504272,4329.1,4329.0,0.291]
[1757055120243,3.90504272,4329.1,4329.0,0.6097]
[1757055120745,3.90504272,4329.1,4329.0,0.4101]
[1757055120942,3.90504272,4329.1,4328.6,0.291]
[1757055121139,2.72562853,4329.0,4328.5,0.1191]
[1757055121342,3.2078,4328.6,4328.5,0.4101]
[1757055121541,3.90504272,4328.6,4328.5,0.4101]
[1757055122043,3.90504272,4328.6,4328.5,0.6097]
[1757055123145,3.90504272,4328.6,4328.1,0.291]
[1757055123349,0.65525502,4328.2,4328.1,0.291]
[1757055123549,1.35249774,4328.2,4328.1,0.291]
[1757055126547,1.35249774,4328.2,4328.0,0.1191]
[1757055126749,0.69724272,4328.1,4327.7,3.2078]
[1757055126951,0.69724272,4328.0,4327.7,3.4074]
[1757055127148,3.2078,4327.8,4327.6,0.291]
[1757055127449,0.93224272,4327.7,4327.1,0.291]
[1757055127751,5.0970624,4327.2,4327.1,0.291]
[1757055128052,5.79430512,4327.2,4327.1,0.291]
[1757055128251,4.56029774,4327.2,4327.1,0.291]
[1757055129840,3.90504272,4327.2,4327.1,0.4906]
[1757055130044,3.90504272,4327.2,4327.1,0.6861]
[1757055131750,3.90504272,4327.2,4327.1,0.291]
[1757055133757,4.14004272,4327.2,4327.1,0.291]
[1757055138060,4.14364272,4327.2,4327.1,0.4906]
[1757055138470,4.14474272,4327.2,4327.1,0.291]
[1757055138970,4.14364272,4327.2,4327.1,0.4962]
[1757055139163,4.14364272,4327.2,4327.1,0.693]
[1757055139970,4.14364272,4327.2,4327.1,0.4962]
[1757055143173,0.0029,4326.6,4326.5,0.5211]
[1757055143465,0.0058,4327.1,4327.0,0.1192]
[1757055143665,0.69368429,4327.1,4327.0,0.6428]
[1757055144169,0.69394811,4327.1,4327.0,0.6428]
[1757055145366,0.0058,4327.1,4327.0,0.8396]
[1757055148469,3.2078,4327.2,4327.0,0.8396]
[1757055148678,3.2078,4327.2,4327.1,0.3184]
[1757055148883,3.89601342,4327.2,4327.1,0.3184]
[1757055149080,3.89601342,4327.2,4327.1,0.7204]
[1757055149270,3.2107,4327.2,4327.1,0.7204]
[1757055150673,3.2078,4327.2,4327.1,0.7204]
[1757055150867,3.2107,4327.2,4327.1,0.7204]
[1757055152776,0.1155,4327.4,4327.1,0.402]
[1757055153174,0.1155,4327.4,4327.2,0.3184]
[1757055153377,0.235,4328.0,4327.3,0.7204]
[1757055153678,0.69537129,4327.9,4327.8,0.7204]
[1757055153877,0.0058,4327.9,4327.8,0.7204]
[1757055154479,0.0058,4327.9,4327.8,0.3184]
[1757055154875,0.69555073,4327.9,4327.8,0.5236]
[1757055155177,0.6956701,4327.9,4327.8,0.5236]
[1757055155580,1.35118468,4327.9,4327.8,0.5236]
[1757055156176,1.35149124,4327.9,4327.8,0.7204]
[1757055156973,3.3233,4328.1,4327.8,1.13623]
[1757055157178,3.3233,4328.1,4328.0,1.25541]
[1757055157379,3.2078,4328.1,4328.0,1.25541]
[1757055158282,3.86331458,4328.1,4328.0,0.8396]
[1757055158581,3.86911458,4328.1,4328.0,0.8396]
[1757055158979,3.87091458,4328.1,4328.0,0.4376]
[1757055159282,3.86911458,4328.1,4328.0,0.4376]
[1757055159482,3.86911458,4328.1,4328.0,0.6428]
[1757055162081,3.86911458,4328.1,4328.0,0.8396]
[1757055163385,3.2136,4328.1,4328.0,0.8396]
[1757055163685,3.87091458,4328.1,4328.0,0.4376]
[1757055164076,3.86911458,4328.1,4328.0,0.6428]
[1757055164477,3.2078,4328.1,4328.0,1.25541]
[1757055164886,3.2078,4328.1,4328.0,0.8396]
[1757055166191,3.2136,4328.1,4328.0,0.8396]
[1757055166690,3.2136,4328.1,4328.0,0.6428]
[1757055166882,3.2136,4328.1,4328.0,0.8396]
[1757055167082,3.2078,4328.1,4328.0,0.8396]
[1757055167278,3.2107,4328.1,4328.0,0.8396]
[1757055169785,3.2078,4328.1,4328.0,1.25541]
[1757055170090,3.2078,4328.1,4328.0,0.8396]
[1757055170293,3.2078,4328.1,4328.0,1.25541]
[1757055170485,3.2078,4328.1,4328.0,0.8396]
[1757055171893,3.2078,4328.1,4328.0,1.25541]
[1757055172290,3.2078,4328.1,4328.0,1.91092458]
[1757055173388,3.2104,4328.1,4328.0,1.25541]
[1757055173796,3.2078,4328.1,4328.0,1.25541]
[1757055177091,3.2078,4328.1,4328.0,1.91092458]
[1757055177294,3.2078,4328.6,4328.5,0.53666]
[1757055177590,0.0052,4329.1,4328.0,0.23098999]
[1757055177794,0.0068,4326.2,4325.0,0.1209]
[1757055177999,0.0052,4325.5,4325.0,0.1209]
[1757055178187,3.2104,4325.1,4325.0,0.5352]
[1757055178487,3.2078,4325.1,4325.0,0.5352]
[1757055179096,3.2078,4325.1,4325.0,1.19071458]
[1757055179697,3.2078,4325.1,4325.0,5.48261458]
[1757055180303,3.2078,4325.1,4325.0,4.8271]
[1757055181299,3.2078,4325.1,4325.0,0.8271]
[1757055182399,3.2078,4325.6,4325.5,1.24315]
[1757055182596,3.2078,4325.6,4325.5,1.49215]
[1757055183095,3.2104,4325.6,4325.5,1.07785]
[1757055183399,3.213,4325.6,4325.5,0.8746]
[1757055183597,3.213,4325.6,4325.5,1.0761]
[1757055186096,3.2078,4325.6,4325.5,1.0761]
[1757055190007,3.2104,4325.6,4325.5,0.8746]
[1757055190197,3.213,4325.6,4325.5,0.8746]
[1757055190397,3.213,4325.6,4325.5,1.0761]
[1757055191303,3.2104,4325.6,4325.5,1.0761]
[1757055192095,3.2078,4325.6,4325.5,1.0761]
[1757055193207,3.2078,4326.1,4326.0,1.24311]
[1757055193398,3.213,4326.1,4326.0,1.49011]
[1757055194909,3.213,4326.1,4326.0,1.0741]
[1757055195709,3.213,4326.1,4326.0,0.8726]
[1757055196805,3.44398999,4326.1,4326.0,0.8726]
[1757055197700,3.2078,4326.1,4326.0,1.0741]
[1757055198298,3.2104,4326.1,4326.0,1.0741]
[1757055198900,3.2126,4326.1,4326.0,1.0741]
[1757055200800,3.2126,4326.1,4326.0,1.49011]
[1757055201709,3.2078,4326.1,4326.0,1.49011]
[1757055202810,0.1155,4326.6,4326.0,1.0741]
[1757055203014,0.5075,4327.0,4326.9,1.87638886]
[1757055203213,0.7079,4327.0,4326.9,0.9436]
[1757055203407,0.7079,4327.0,4326.9,1.35952]
[1757055205017,0.2094,4327.0,4326.9,1.35952]
[1757055205617,0.5075,4327.2,4327.1,1.1125]
[1757055205812,0.5075,4327.2,4327.1,0.6966]
[1757055206008,0.7079,4327.2,4327.1,0.6966]
[1757055206208,0.7079,4327.2,4327.1,0.2062]
[1757055206409,0.7079,4327.1,4327.0,1.11251]
[1757055206610,0.7079,4327.1,4327.0,0.4976]
[1757055206812,0.7079,4327.1,4327.0,0.9426]
[1757055207316,0.7079,4327.1,4327.0,1.35851]
[1757055208019,0.7079,4327.1,4327.0,4.56631]
[1757055208615,0.2094,4327.2,4327.1,0.2914]
[1757055208922,0.7079,4327.2,4327.1,1.1125]
[1757055209220,3.9157,4327.8,4327.7,0.2062]
[1757055209420,4.14668999,4327.8,4327.6,0.246]
[1757055209618,3.9157,4327.8,4327.6,0.246]
[1757055209923,0.64078999,4327.7,4327.6,0.246]
[1757055210125,0.93888999,4327.7,4327.6,0.246]
[1757055210429,0.7079,4327.7,4327.6,0.246]
[1757055214022,0.7079,4327.7,4327.6,0.7436]
[1757055216331,0.7079,4327.7,4327.6,0.246]
[1757055218932,0.7079,4327.7,4327.6,0.4522]
[1757055219128,0.7079,4327.7,4327.6,0.2062]
[1757055219333,0.2981,4327.1,4326.5,0.70736]
[1757055219632,0.7079,4326.6,4326.5,0.4976]
[1757055219831,0.7079,4326.6,4326.2,3.2078]
[1757055219832,0.4098,4326.3,4326.2,3.414]
[1757055220024,0.4098,4326.3,4326.2,3.7054]
[1757055220025,0.7079,4326.3,4326.2,3.7054]
[1757055220225,0.7079,4326.3,4326.2,3.9504]
[1757055221023,0.93888999,4326.3,4326.2,4.1494]
[1757055221228,0.93888999,4326.3,4326.2,0.2062]
[1757055221428,0.93888999,4326.3,4326.2,0.245]
[1757055223333,0.7079,4325.7,4325.6,0.899]
[1757055223529,0.93888999,4325.7,4325.6,0.899]
[1757055223733,0.7079,4325.7,4325.6,0.899]
[1757055228840,0.7079,4325.7,4325.6,1.1021]
[1757055229049,0.7079,4325.7,4325.6,0.899]
[1757055233049,0.7079,4325.7,4325.6,1.6238]
[1757055233251,0.2094,4325.7,4325.6,1.6238]
[1757055233851,0.5163,4325.7,4325.6,1.6238]
[1757055235251,0.7185,4325.7,4325.6,1.6238]
[1757055241352,3.2078,4325.8,4325.6,1.3091]
[1757055241556,3.2078,4325.8,4325.7,0.7248]
[1757055244058,3.2078,4325.8,4325.7,0.9678]
[1757055246259,3.4048,4325.8,4325.7,0.9678]
[1757055246460,3.7117,4325.8,4325.7,0.9678]
[1757055246855,3.9139,4325.8,4325.7,0.9678]
[1757055250058,0.7061,4325.8,4325.7,0.9678]
[1757055251570,3.2078,4326.4,4326.1,0.4101]
[1757055251759,3.2078,4326.4,4326.3,0.3147]
[1757055252066,3.2078,4326.4,4326.3,0.7248]
[1757055252266,3.9139,4326.4,4326.3,0.7248]
[1757055256371,0.7061,4326.4,4326.3,0.7248]
[1757055257464,0.197,4326.4,4326.3,0.7248]
[1757055257664,3.86377302,4326.9,4326.4,0.3147]
[1757055257864,0.42798999,4326.5,4326.4,0.7248]
[1757055258075,0.23098999,4326.6,4326.4,1.14076]
[1757055258271,0.23098999,4326.6,4326.5,0.8402]
[1757055258469,0.75288999,4326.6,4326.5,0.8402]
[1757055259874,0.94878999,4326.6,4326.5,0.8402]
[1757055260073,0.94878999,4326.6,4326.5,0.7229]
[1757055262277,3.9256,4326.9,4326.8,0.7229]
[1757055262473,3.9256,4326.9,4326.8,0.9639]
[1757055262870,0.7178,4326.9,4326.8,0.9639]
[1757055263067,0.5219,4326.9,4326.8,0.9639]
[1757055264176,0.5219,4327.2,4327.1,0.4049]
[1757055264474,0.75288999,4327.2,4327.1,0.7229]
[1757055264679,0.5219,4327.2,4327.1,0.7229]
[1757055265177,0.7178,4327.2,4327.1,0.7229]
[1757055270274,3.2078,4327.6,4327.2,0.318]
[1757055270481,3.6157,4327.6,4327.5,0.5125]
[1757055270681,3.6157,4327.6,4327.5,0.7229]
[1757055270877,3.9256,4327.6,4327.5,0.7229]
[1757055271078,4.15658999,4327.6,4327.5,0.7229]
[1757055272969,0.4079,4327.4,4327.3,0.241]
[1757055273171,0.3099,4327.3,4327.2,0.1945]
[1757055273481,0.94878999,4327.3,4327.2,0.7525]
[1757055277176,0.94878999,4327.3,4327.2,0.9629]
[1757055277869,0.77437302,4327.5,4327.2,0.9629]
[1757055277870,0.3099,4327.5,4327.2,1.37879]
[1757055278180,0.75288999,4327.4,4327.3,0.7229]
[1757055278577,0.5219,4327.4,4327.3,0.7229]
[1757055279578,3.2078,4327.6,4327.5,1.25606]
[1757055279880,3.2078,4327.6,4327.5,0.8402]
[1757055282685,0.3099,4327.9,4327.5,0.93806]
[1757055282882,0.75288999,4327.9,4327.8,0.7229]
[1757055283079,0.5219,4327.9,4327.8,0.9629]
[1757055283774,0.7178,4327.9,4327.8,0.9629]
[1757055286582,0.7178,4327.9,4327.8,0.4345]
[1757055286788,0.7178,4327.9,4327.8,0.24]
[1757055287084,0.1959,4327.9,4327.8,0.24]
[1757055287281,0.7178,4327.9,4327.8,0.24]
[1757055287977,0.4228,4327.4,4327.3,0.318]
[1757055288184,0.97038999,4327.4,4327.3,0.9773]
[1757055288384,0.7394,4327.4,4327.3,0.9773]
[1757055291290,0.7394,4327.4,4327.3,0.7383]
[1757055291485,0.5285,4327.4,4327.3,0.9773]
[1757055291882,0.7394,4327.4,4327.3,0.9773]
[1757055293189,0.5285,4327.4,4327.3,0.9773]
[1757055293385,0.5285,4327.7,4327.6,0.4203]
[1757055293583,0.5285,4327.7,4327.6,0.7191]
[1757055293784,0.2119,4327.7,4327.6,0.7191]
[1757055293983,0.7394,4328.2,4328.1,0.2077]
[1757055294787,0.1161,4328.0,4327.9,0.239]
[1757055294988,1.74246301,4328.0,4327.9,0.239]
[1757055295893,1.74246301,4328.0,4327.9,0.4467]
[1757055296093,1.74246301,4328.0,4327.9,0.7455]
[1757055297389,1.74246301,4328.0,4327.9,0.239]
[1757055301392,1.74246301,4328.0,4327.9,0.7455]
[1757055301686,1.74246301,4328.0,4327.9,0.9581]
[1757055301687,0.97038999,4328.0,4327.9,0.9581]
[1757055302087,1.08648999,4328.0,4327.9,0.9581]
[1757055302799,0.7394,4328.0,4327.9,0.9581]
[1757055303901,0.8555,4328.0,4327.9,0.9581]
[1757055304796,0.7394,4328.0,4327.9,0.9581]
[1757055304999,0.8555,4328.0,4327.9,0.7455]
[1757055305300,1.08648999,4328.0,4327.9,0.4467]
[1757055305497,1.08648999,4328.0,4327.9,0.7455]
[1757055307795,0.97038999,4328.0,4327.9,0.9581]
[1757055309606,0.5285,4328.0,4327.9,0.9581]
[1757055310304,0.7394,4328.0,4327.9,0.9581]
[1757055311099,0.8555,4328.0,4327.9,0.9581]
[1757055311301,0.8555,4328.0,4327.9,0.239]
[1757055312409,1.08648999,4328.0,4327.9,0.239]
[1757055313808,1.08648999,4328.0,4327.6,0.2988]
[1757055313996,0.65378999,4327.8,4327.7,0.238]
[1757055314208,0.4228,4327.8,4327.7,0.238]
[1757055314713,0.97038999,4327.8,4327.7,0.238]
[1757055314913,0.97038999,4327.8,4327.7,0.7445]
[1757055315216,0.97038999,4327.8,4327.7,0.9571]
[1757055320217,0.97038999,4327.8,4327.7,0.238]
[1757055320421,0.97038999,4327.8,4327.7,0.7378]
[1757055321222,0.97038999,4327.8,4327.7,0.9446]
[1757055321518,0.1237,4328.5,4327.7,0.6516]
[1757055321716,0.73098999,4328.0,4327.9,0.4136]
[1757055321917,0.73098999,4328.0,4327.9,0.7066]
[1757055322417,0.92658999,4328.0,4327.9,0.7066]
[1757055322628,3.7078,4328.4,4328.3,0.7066]
[1757055322819,3.7078,4328.4,4328.3,0.9436]
[1757055323420,3.9034,4328.4,4328.3,0.9436]
[1757055325326,3.5985,4328.9,4328.8,0.2068]
[1757055325521,3.5985,4328.9,4328.3,0.237]
[1757055325726,0.23098999,4328.6,4328.5,0.2068]
[1757055325927,0.92658999,4328.6,4328.5,0.4998]
[1757055326126,0.92658999,4328.6,4328.5,0.7066]
[1757055326920,0.92658999,4328.6,4328.3,0.237]
[1757055327121,0.6956,4328.4,4328.3,0.7368]
[1757055327427,0.6956,4328.4,4328.3,0.9436]
[1757055330220,4.00581025,4328.9,4328.3,0.9436]
[1757055330221,0.3049,4328.7,4328.3,0.9436]
[1757055330428,0.23098999,4328.6,4328.5,0.5312]
[1757055330928,3.2078,4329.5,4329.3,0.293]
[1757055331122,0.6956,4329.8,4329.7,0.7066]
[1757055331517,0.92658999,4329.8,4329.7,0.7066]
[1757055332325,3.2078,4330.0,4329.8,0.293]
[1757055332628,3.9034,4330.0,4329.9,0.9436]
[1757055333229,0.6956,4330.0,4329.9,0.9436]
[1757055333427,0.92658999,4330.0,4329.9,0.9436]
[1757055334130,1.04758999,4330.0,4329.9,0.9436]
[1757055335527,0.6956,4330.0,4329.9,0.9436]
[1757055335732,0.92658999,4330.0,4329.9,0.9436]
[1757055336430,0.6956,4330.0,4329.9,0.9436]
[1757055339234,0.5,4330.0,4329.9,0.9436]
[1757055339822,0.6956,4330.0,4329.9,0.9436]
[1757055343334,0.5,4330.3,4330.2,0.4136]
[1757055343534,0.73098999,4330.3,4330.2,0.7066]
[1757055343733,0.5,4330.3,4330.2,0.7066]
[1757055345326,0.1951,4330.3,4330.2,0.7066]
[1757055345529,0.6956,4330.3,4330.2,0.7066]
[1757055348535,0.92658999,4330.3,4330.2,0.7066]
[1757055350639,0.92658999,4330.3,4330.2,0.7358]
[1757055351334,0.92658999,4330.3,4329.5,0.1176]
[1757055351335,0.92658999,4330.3,4329.6,0.2987]
[1757055351535,0.6956,4330.3,4330.2,0.236]
[1757055352137,0.92658999,4330.3,4330.2,0.236]
[1757055352735,0.6956,4330.3,4330.2,0.236]
[1757055352939,0.92658999,4330.3,4330.2,0.236]
[1757055353730,0.1195,4330.0,4329.8,0.236]
[1757055353936,0.7185,4329.4,4329.3,3.4176]